fUSD/lending_fUSD_20251224
["ID","MTS","AMOUNT","RATE_DAILY","PERIOD"]
[399672086,1766602354582,-500.0,0.00014184,2]
[399672087,1766602354615,-500.0,0.00014184,2]
[399672088,1766602354647,-500.0,0.00014184,2]
[399672089,1766602354681,-500.0,0.00014184,2]
[399672090,1766602354714,-500.0,0.00014184,2]
[399672091,1766602354747,-500.0,0.00014184,2]
[399672092,1766602354918,-500.0,0.00014184,2]
[399672093,1766602354952,-500.0,0.00014184,2]
[399672094,1766602354986,-500.0,0.00014184,2]
[399672095,1766602355019,-500.0,0.00014184,2]
[399672096,1766602355052,-500.0,0.00014184,2]
[399672097,1766602355087,-500.0,0.00014184,2]
[399672098,1766602355120,-500.0,0.00014184,2]
[399672099,1766602355154,-500.0,0.00014184,2]
[399672100,1766602355189,-500.0,0.00014184,2]
[399672101,1766602355222,-500.0,0.00014184,2]
[399672102,1766602355706,-500.0,0.00014184,2]
[399672103,1766602355742,-500.0,0.00014184,2]
[399672104,1766602355773,-500.0,0.00014184,2]
[399672105,1766602355804,-500.0,0.00014184,2]
[399672106,1766602355840,-500.0,0.00014184,2]
[399672107,1766602355876,-456.39746909,0.00014184,2]
[399672108,1766602355909,-500.0,0.00014184,2]
[399672109,1766602355939,-500.0,0.00014184,2]
[399672110,1766602356474,-238.02179816,0.00014185,2]
[399672111,1766602357423,-234.69882905,0.00014185,2]
[399672112,1766602360105,-249.0266582,0.00014185,2]
[399672113,1766602362651,-177.51129555,0.00014185,2]
[399672114,1766602364584,-605.95025083,0.00014185,2]
[399672115,1766602364844,500.0,0.00014184,2]
[399672116,1766602364908,500.0,0.00014184,2]
[399672117,1766602364958,500.0,0.00014184,2]
[399672118,1766602365014,500.0,0.00014184,2]
[399672119,1766602365071,87.21506182,0.00014184,2]
[399672120,1766602365103,412.78493818,0.00014184,2]
[399672121,1766602365158,500.0,0.00014184,2]
[399672122,1766602365238,500.0,0.00014184,2]
[399672123,1766602365294,500.0,0.00014184,2]
[399672124,1766602365351,500.0,0.00014184,2]
[399672125,1766602365422,500.0,0.00014184,2]
[399672126,1766602366579,-403.50834349,0.00014185,2]
[399672127,1766602368430,-156.41160817,0.00014185,2]
[399672128,1766602370451,-220.44174219,0.00014185,2]
[399672129,1766602372602,-267.33747421,0.00014185,2]
[399672130,1766602374932,-288.12267172,0.00014185,2]
[399672131,1766602376194,-315.34295162,0.00014185,2]
[399672132,1766602377744,-175.38518518,0.00014185,2]
[399672133,1766602380003,-210.0,0.00014185,2]
[399672134,1766602381933,-490.27007634,0.00014185,2]
[399672135,1766602383778,-198.47416993,0.00014185,2]
[399672136,1766602385887,-397.97228736,0.00014185,2]
[399672137,1766602387971,-316.06768111,0.00014185,2]
[399672138,1766602389902,-411.97544388,0.00014185,2]
[399672139,1766602392972,-386.98026882,0.00014185,2]
[399672140,1766602396167,-363.10651645,0.00014185,2]
[399672141,1766602398610,-291.47211502,0.00014185,2]
[399672142,1766602400165,-209.02313918,0.00014185,2]
[399672143,1766602402165,-340.64737108,0.00014185,2]
[399672144,1766602404736,-190.75085827,0.00014185,2]
[399672145,1766602406304,-336.23586509,0.00014185,2]
[399672146,1766602409228,5995.8831807,0.00014184,2]
[399672147,1766602409716,-207.40171944,0.00014185,2]
[399672148,1766602412332,-384.02457248,0.00014185,2]
[399672149,1766602413780,635.54071019,0.00014184,2]
[399672150,1766602414390,-181.49564701,0.00014185,2]
[399672151,1766602415839,-693.85566637,0.00014185,2]
[399672152,1766602417619,455.80117093,0.00014184,2]
[399672153,1766602417646,44.19882907,0.00014184,2]
[399672154,1766602417695,500.0,0.00014184,2]
[399672155,1766602417746,500.0,0.00014184,2]
[399672156,1766602417790,179.50348695,0.00014184,2]
[399672157,1766602417853,-344.79220083,0.00014185,2]
[399672158,1766602420422,-212.7089321,0.00014185,2]
[399672159,1766602424636,-300.0,0.00014185,2]
[399672160,1766602429532,-267.36563553,0.00014185,2]
[399672161,1766602432834,-195.0,0.00014185,2]
[399672162,1766602435128,-205.13529122,0.00014185,2]
[399672163,1766602436720,524.86676846,0.00014184,2]
[399672164,1766602437728,-173.30744831,0.00014185,2]
[399672165,1766602439562,-260.92763524,0.00014185,2]
[399672166,1766602441616,150.0,0.00014184,2]
[399672167,1766602442233,-253.351569,0.00014185,2]
[399672168,1766602443002,300.0,0.00014184,2]
[399672169,1766602444295,-264.84966531,0.00014185,2]
[399672170,1766602447000,-199.89974915,0.00014185,2]
[399672171,1766602449126,-210.46176332,0.00014185,2]
[399672172,1766602452383,-182.95894289,0.00014185,2]
[399672173,1766602453803,-300.0,0.00014185,2]
[399672174,1766602455795,-287.21469149,0.00014185,2]
[399672175,1766602457792,-155.40723773,0.00014185,2]
[399672176,1766602457881,168.38,0.00012402,2]
[399672177,1766602458071,168.38,0.00013952,2]
[399672178,1766602462634,-202.62079403,0.00014185,2]
[399672179,1766602465075,-300.0,0.00014185,2]
[399672180,1766602467151,-184.60791368,0.00014185,2]
[399672181,1766602469948,-307.37807078,0.00014185,2]
[399672182,1766602471558,509.8537,0.00014085,2]
[399672183,1766602472661,-186.76079932,0.00014185,2]
[399672184,1766602474758,214.95929311,0.00014184,2]
[399672185,1766602475720,-295.30179394,0.00014185,2]
[399672186,1766602477932,-187.54426871,0.00014185,2]
[399672187,1766602481260,-395.91119921,0.00014185,2]
[399672188,1766602482927,-385.95788034,0.00014185,2]
[399672189,1766602484532,-209.742693,0.00014185,2]
[399672190,1766602486575,-197.89081002,0.00014185,2]
[399672191,1766602489843,-296.69520445,0.00014185,2]
[399672192,1766602491489,-267.90004059,0.00014185,2]
[399672193,1766602495522,-176.67626731,0.00014185,2]
[399672194,1766602497022,-320.43004117,0.00014185,2]
[399672195,1766602499019,-370.6461,0.00014185,2]
[399672196,1766602501837,300.0,0.00014184,2]
[399672197,1766602501876,1200.0,0.00014184,2]
[399672198,1766602501913,300.0,0.00014184,2]
[399672199,1766602502250,-341.99827021,0.00014185,2]
[399672200,1766602503766,-171.69170702,0.00014185,2]
[399672201,1766602505261,-300.0,0.00014185,2]
[399672202,1766602506666,-201.93541913,0.00014185,2]
[399672203,1766602508413,267.3552,0.00014085,2]
[399672204,1766602509354,-269.69195794,0.00014185,2]
[399672205,1766602511765,-263.07859906,0.00014185,2]
[399672206,1766602512875,-186.58389147,0.00014185,2]
[399672207,1766602515955,-478.90673007,0.00014185,2]
[399672208,1766602518941,-599.32209457,0.00014185,2]
[399672209,1766602523146,-160.79287812,0.00014185,2]
[399672210,1766602525081,-155.77863173,0.00014185,2]
[399672211,1766602527803,-272.2805468,0.00014185,2]
[399672212,1766602529931,-185.34531192,0.00014185,2]
[399672213,1766602532082,-252.51769995,0.00014185,2]
[399672214,1766602535561,-242.26357046,0.00014185,2]
[399672215,1766602537800,-157.10837628,0.00014185,2]
[399672216,1766602540462,-283.63239317,0.00014185,2]
[399672217,1766602543221,-271.09883955,0.00014185,2]
[399672218,1766602544531,-442.46819843,0.00014185,2]
[399672219,1766602547176,-281.81780859,0.00014185,2]
[399672220,1766602548664,-215.14989761,0.00014185,2]
[399672221,1766602550736,-232.351131,0.00014185,2]
[399672222,1766602552156,-362.80827377,0.00014185,2]
[399672223,1766602558149,-320.87010147,0.00014185,2]
[399672224,1766602559582,-166.66,0.00014185,2]
[399672225,1766602561762,-340.30061707,0.00014185,2]
[399672226,1766602564725,-235.57626546,0.00014185,2]
[399672227,1766602567660,-236.26317538,0.00014185,2]
[399672228,1766602569737,-224.38656483,0.00014185,2]
[399672229,1766602572090,-296.40985861,0.00014185,2]
[399672230,1766602573843,-267.35514473,0.00014185,2]
[399672231,1766602574952,-605.81252064,0.00014185,2]
[399672232,1766602577451,-200.0,0.00014185,2]
[399672233,1766602580869,-169.30485527,0.00014185,2]
[399672234,1766602583682,-177.91307375,0.00014185,2]
[399672235,1766602622363,150.0,0.00014184,2]
[399672236,1766602622770,300.0,0.00014184,2]
[399672237,1766602637726,-292.42996954,0.00014185,2]
[399672238,1766602643199,500.0,0.00014184,2]
[399672239,1766602652475,3722.51272241,0.00014085,2]
[399672240,1766602652500,5186.75962702,0.00014085,2]
[399672241,1766602667753,-201.71822738,0.00014185,2]
[399672242,1766602670253,2500.0,0.00014085,2]
[399672243,1766602670353,-502.72372436,0.00014185,2]
[399672244,1766602671821,-229.00461773,0.00014185,2]
[399672245,1766602673878,-263.79702715,0.00014185,2]
[399672246,1766602675355,-233.0445807,0.00014185,2]
[399672247,1766602681202,300.0,0.00014184,2]
[399672248,1766602689065,1200.0,0.00014184,2]
[399672249,1766602741218,300.0,0.00014184,2]
[399672250,1766602783905,513.25037298,0.00014166,2]
[399672251,1766602783931,3027.08733943,0.00014166,2]
[399672252,1766602801314,1200.0,0.00014184,2]
[399672253,1766602801533,150.0,0.00014184,2]
[399672254,1766602801611,300.0,0.00014184,2]
[399672255,1766602809738,952.78,7.363e-05,2]
[399672256,1766602809973,952.78,7.75e-05,2]
[399672257,1766602810185,952.78,8.138e-05,2]
[399672258,1766602810391,952.78,8.525e-05,2]
[399672259,1766602810589,952.78,8.913e-05,2]
[399672260,1766602810801,559.02266057,9.3e-05,2]
[399672261,1766602810827,393.75733943,9.3e-05,2]
[399672262,1766602810991,952.78,9.688e-05,2]
[399672263,1766602811194,952.78,0.00010075,2]
[399672264,1766602811432,952.78,0.00010463,2]
[399672265,1766602811603,952.78,0.0001085,2]
[399672266,1766602811822,952.78,0.00011238,2]
[399672267,1766602812027,952.78,0.00011625,2]
[399672268,1766602812243,952.78,0.00012013,2]
[399672269,1766602812459,952.78,0.000124,2]
[399672270,1766602812681,952.78,0.00012788,2]
[399672271,1766602812900,952.78,0.00013175,2]
[399672272,1766602813137,78.45266057,0.00013563,2]
[399672273,1766602813161,874.32733943,0.00013563,2]
[399672274,1766602813318,952.78,0.0001395,2]
[399672275,1766602817260,500.55152277,0.00014184,2]
[399672276,1766602819251,2500.0,0.00014085,2]
[399672277,1766602822388,500.0,0.00014184,2]
[399672278,1766602822436,500.0,0.00014184,2]
[399672279,1766602822495,500.0,0.00014184,2]
[399672280,1766602822551,500.0,0.00014184,2]
[399672281,1766602822601,263.59009561,0.00014184,2]
[399672282,1766602858473,247.17722841,0.00014184,2]
[399672283,1766602858509,195.48017516,0.00014184,2]
[399672284,1766602861287,300.0,0.00014184,2]
[399672285,1766602861743,500.0,0.00014184,2]
[399672286,1766602862234,500.0,0.00014184,2]
[399672288,1766602876402,500.0,0.00014184,2]
[399672289,1766602880921,500.0,0.00014184,2]
[399672290,1766602882246,500.0,0.00014184,2]
[399672291,1766602885570,500.0,0.00014184,2]
[399672292,1766602885650,541.91533183,0.00014184,2]
[399672293,1766602885693,265.86347042,0.00014184,2]
[399672294,1766602886837,185.4321758,0.00014184,2]
[399672295,1766602886865,66.07783482,0.00014184,2]
[399672296,1766602892192,500.0,0.00014184,2]
[399672297,1766602900689,500.0,0.00014184,2]
[399672298,1766602902691,500.0,0.00014184,2]
[399672299,1766602908019,500.0,0.00014184,2]
[399672300,1766602911353,7933.93216518,0.00014184,2]
[399672301,1766602911375,10000.01,0.00014184,2]
[399672302,1766602911398,9657.10407989,0.00014184,2]
[399672303,1766602913596,500.0,0.00014184,2]
[399672304,1766602925102,200.0,0.00014185,2]
[399672305,1766602927636,500.0,0.00014184,2]
[399672306,1766602932628,207.4,0.00014185,2]
[399672307,1766602940079,-143000.0,0.00014185,2]
[399672308,1766602942388,500.0,0.00014185,2]
[399672309,1766602943671,500.0,0.00014185,2]
[399672310,1766602943843,500.0,0.00014185,2]
[399672311,1766602944176,500.0,0.00014185,2]
[399672312,1766602944306,500.0,0.00014185,2]
[399672313,1766602944765,500.0,0.00014185,2]
[399672314,1766602944831,500.0,0.00014185,2]
[399672315,1766602945379,500.0,0.00014185,2]
[399672316,1766602945462,500.0,0.00014185,2]
[399672317,1766602946028,500.0,0.00014185,2]
[399672318,1766602946066,500.0,0.00014185,2]
[399672319,1766602946707,500.0,0.00014185,2]
[399672320,1766602946746,500.0,0.00014185,2]
[399672321,1766602947294,500.0,0.00014185,2]
[399672322,1766602947332,500.0,0.00014185,2]
[399672323,1766602947875,500.0,0.00014185,2]
[399672324,1766602947912,500.0,0.00014185,2]
[399672325,1766602948496,92.61,0.00014185,2]
[399672326,1766602948520,407.39,0.00014185,2]
[399672327,1766602948557,500.0,0.00014185,2]
[399672328,1766602949093,500.0,0.00014185,2]
[399672329,1766602949784,500.0,0.00014185,2]
[399672330,1766602950390,500.0,0.00014185,2]
[399672331,1766602951680,500.0,0.00014185,2]
[399672332,1766602955897,200.0,0.00014185,2]
[399672333,1766602960576,151.0,0.00014185,2]
[399672334,1766602961676,151.0,0.00014185,2]
[399672335,1766602962620,-151.0,0.00014185,2]
[399672336,1766602962656,-151.0,0.00014185,2]
[399672337,1766602962949,-2415.20351886,0.00014185,2]
[399672338,1766602963154,-10000.01,0.00014185,2]
[399672339,1766602963199,-10000.01,0.00014185,2]
[399672340,1766602963251,-10000.01,0.00014185,2]
[399672341,1766602963304,-151.0,0.00014185,2]
[399672342,1766602963315,-9849.01,0.00014185,2]
[399672343,1766602963368,-10000.01,0.00014185,2]
[399672344,1766602963399,-10000.01,0.00014185,2]
[399672345,1766602963495,-10000.01,0.00014185,2]
[399672346,1766602963625,-10000.01,0.00014185,2]
[399672347,1766602963801,-10000.01,0.00014185,2]
[399672348,1766602975050,-500.0,0.00014184,2]
[399672349,1766602975079,-151.0,0.00014185,2]
[399672350,1766602975108,-151.0,0.00014185,2]
[399672351,1766602975138,-151.0,0.00014185,2]
[399672352,1766602975167,-151.0,0.00014185,2]
[399672353,1766602975198,-151.0,0.00014185,2]
[399672354,1766602975233,-151.0,0.00014185,2]
[399672355,1766602976254,173.97806842,0.00014184,2]
[399672356,1766602982311,150.0,0.00014184,2]
[399672357,1766602996005,6864.03193158,0.00014176,2]
[399672358,1766602996029,10000.01,0.00014176,2]
[399672359,1766602996052,1723.11806842,0.00014176,2]
[399672360,1766603005576,500.0,0.00014184,2]
[399672361,1766603022548,2746.891468,0.00014114,2]
[399672362,1766603033966,500.0,0.00014184,2]
[399672363,1766603034022,500.0,0.00014184,2]
[399672364,1766603034076,500.0,0.00014184,2]
[399672365,1766603034141,500.0,0.00014184,2]
[399672366,1766603034199,365.5862997,0.00014184,2]
[399672367,1766603041658,300.0,0.00014184,2]
[399672368,1766603052459,2364.41416388,0.000141,2]
[399672369,1766603052482,3388.58583612,0.000141,2]
[399672371,1766603081987,365.27868297,0.00014184,2]
[399672372,1766603083472,6246.14548091,0.000141,2]
[399672373,1766603083494,7768.85451909,0.000141,2]
[399672374,1766603096743,2231.15548091,0.00014085,2]
[399672375,1766603096769,268.84451909,0.00014085,2]
[399672376,1766603097591,-222.5891991,0.00014185,2]
[399672377,1766603100032,-492.43574919,0.00014185,2]
[399672378,1766603101218,1200.0,0.00014184,2]
[399672379,1766603101897,300.0,0.00014184,2]
[399672380,1766603102097,-370.60413809,0.00014185,2]
[399672381,1766603105594,-162.64236034,0.00014185,2]
[399672382,1766603108352,-334.05210067,0.00014185,2]
[399672383,1766603114816,-293.45686372,0.00014185,2]
[399672384,1766603116851,-214.86025131,0.00014185,2]
[399672385,1766603119935,-573.38984558,0.00014185,2]
[399672386,1766603123196,-234.68775036,0.00014185,2]
[399672387,1766603125857,-202.62648438,0.00014185,2]
[399672388,1766603128735,-371.06180696,0.00014185,2]
[399672389,1766603130790,-290.56774108,0.00014185,2]
[399672390,1766603133759,-245.99778002,0.00014185,2]
[399672391,1766603135809,-279.67423165,0.00014185,2]
[399672392,1766603138613,-237.73537449,0.00014185,2]
[399672393,1766603139633,406.88394056,0.00014085,2]
[399672394,1766603140761,-231.81850656,0.00014185,2]
[399672395,1766603144047,-178.09603618,0.00014185,2]
[399672396,1766603145547,-275.6584545,0.00014185,2]
[399672397,1766603145598,406.88394054,0.00014113,2]
[399672398,1766603148789,-289.06394144,0.00014185,2]
[399672399,1766603150636,-193.94170341,0.00014185,2]
[399672400,1766603151567,406.88394054,0.0001414,2]
[399672401,1766603153398,-302.00611386,0.00014185,2]
[399672402,1766603154815,-606.05829659,0.00014185,2]
[399672403,1766603156903,-388.94170341,0.00014185,2]
[399672404,1766603158450,-300.0,0.00014185,2]
[399672405,1766603160361,-300.0,0.00014185,2]
[399672406,1766603161539,150.0,0.00014184,2]
[399672407,1766603161596,300.0,0.00014184,2]
[399672408,1766603162350,-222.33141467,0.00014185,2]
[399672409,1766603163889,-170.24023428,0.00014185,2]
[399672410,1766603167648,-224.58067817,0.00014185,2]
[399672411,1766603169082,-258.41362041,0.00014185,2]
[399672412,1766603169850,500.0,0.00014184,2]
[399672413,1766603177800,5526.0,0.000141,3]
[399672414,1766603192129,-856.42508547,0.00014185,2]
[399672415,1766603192753,-300.0,0.00014185,2]
[399672416,1766603206365,286.12837513,0.00014184,2]
[399672417,1766603207685,-323.32876253,0.00014185,2]
[399672418,1766603221009,248.38528414,0.00014184,2]
[399672419,1766603221032,251.61471586,0.00014184,2]
[399672420,1766603224505,500.0,0.00014184,2]
[399672421,1766603230303,151.0,0.00014185,2]
[399672422,1766603230888,151.0,0.00014185,2]
[399672423,1766603231970,151.0,0.00014185,2]
[399672424,1766603232582,151.0,0.00014185,2]
[399672425,1766603233187,151.0,0.00014185,2]
[399672426,1766603233533,200.0,0.00014185,2]
[399672427,1766603233793,151.0,0.00014185,2]
[399672428,1766603234403,151.0,0.00014185,2]
[399672429,1766603234987,258.72522517,0.00014185,2]
[399672430,1766603240410,257.50111466,0.00014185,2]
[399672431,1766603244808,503.77633702,0.00014185,2]
[399672432,1766603247734,201.68796137,0.00014185,2]
[399672433,1766603265413,-9581.70464592,0.00014185,2]
[399672434,1766603265475,-10000.01,0.00014185,2]
[399672435,1766603265604,-2286.93263936,0.00014185,2]
[399672436,1766603265634,-173.97806842,0.00014185,2]
[399672437,1766603265666,-173.97806842,0.00014185,2]
[399672438,1766603265695,-1000.0,0.00014185,2]
[399672439,1766603265725,-160.36151247,0.00014185,2]
[399672440,1766603265754,-600.0,0.00014185,2]
[399672441,1766603265783,-250.0,0.00014185,2]
[399672442,1766603265813,-300.0,0.00014185,2]
[399672443,1766603265931,-195.0,0.00014185,2]
[399672444,1766603265962,-250.0,0.00014185,2]
[399672445,1766603265991,-300.0,0.00014185,2]
[399672446,1766603273882,-195.0,0.00014185,2]
[399672447,1766603273914,-259.22916117,0.00014185,2]
[399672448,1766603273947,-892.72194377,0.00014185,2]
[399672449,1766603273980,-502.33995082,0.00014185,2]
[399672450,1766603274014,-200.13446504,0.00014185,2]
[399672451,1766603274046,-151.0,0.00014185,2]
[399672452,1766603274075,-200.0,0.00014185,2]
[399672453,1766603274110,-2082.9760655,0.00014185,2]
[399672454,1766603274220,-4467.0880279,0.00014185,2]
[399672455,1766603274319,-1065.8339442,0.00014185,2]
[399672456,1766603275118,171.54382718,0.00014185,2]
[399672457,1766603277096,151.0,0.00014185,2]
[399672458,1766603281536,300.0,0.00014185,2]
[399672459,1766603283159,3344.48324842,0.00014185,2]
[399672460,1766603283206,3901.315036,0.00014185,2]
[399672461,1766603283233,751.40392601,0.00014185,2]
[399672462,1766603286076,-1000.0,0.00014186,2]
[399672463,1766603286274,-0.02,0.00014186,2]
[399672464,1766603286325,-9380.23396239,0.00014186,2]
[399672465,1766603286392,-151.0,0.00014186,2]
[399672466,1766603286427,-619.73603761,0.00014186,2]
[399672467,1766603290540,500.0,0.00014184,2]
[399672468,1766603290960,500.0,0.00014184,2]
[399672469,1766603318307,247.9094407,0.00014185,2]
[399672470,1766603334614,9752.1005593,0.00014085,2]
[399672471,1766603334640,10000.01,0.00014085,2]
[399672472,1766603334666,10000.01,0.00014085,2]
[399672473,1766603334692,10000.01,0.00014085,2]
[399672474,1766603335025,10000.01,0.00014085,2]
[399672475,1766603335054,10000.01,0.00014085,2]
[399672476,1766603335081,10000.01,0.00014085,2]
[399672477,1766603335107,10000.01,0.00014085,2]
[399672478,1766603335133,10000.01,0.00014085,2]
[399672479,1766603335159,10000.01,0.00014085,2]
[399672480,1766603335924,-288.90533939,0.00014085,2]
[399672481,1766603340857,-211.09466061,0.00014085,2]
[399672482,1766603342565,-150.0,0.00014084,2]
[399672483,1766603342595,-217.60455001,0.00014085,2]
[399672484,1766603343971,-220.45658712,0.00014085,2]
[399672485,1766603348885,-328.07198546,0.00014085,2]
[399672486,1766603351065,-204.72190576,0.00014085,2]
[399672487,1766603354088,-1297.27240865,0.00014085,2]
[399672488,1766603354495,151.0,0.00014082,2]
[399672489,1766603395675,387.10574498,0.00014,2]
[399672490,1766603401243,1200.0,0.00014084,2]
[399672491,1766603401286,300.0,0.00014084,2]
[399672492,1766603405592,1064.28,0.00014075,2]
[399672493,1766603405793,1064.28,0.00014075,2]
[399672494,1766603406012,1064.28,0.00014075,2]
[399672495,1766603406243,1064.28,0.00014075,2]
[399672496,1766603406531,1064.28,0.00014075,2]
[399672497,1766603426121,5526.0,0.00014,5]
[399672503,1766603431452,-49543.80290764,0.00014085,2]
[399672504,1766603431567,-10180.22228626,0.00014085,2]
[399672505,1766603431581,-631.73537893,0.00014085,2]
[399672506,1766603431593,-24579.10200457,0.00014085,2]
[399672507,1766603431616,-1467.03322587,0.00014085,2]
[399672508,1766603431631,-717.99160486,0.00014085,2]
[399672509,1766603431724,-272.85182406,0.00014085,2]
[399672510,1766603431736,-1676.10108836,0.00014085,2]
[399672511,1766603431748,-1709.26755437,0.00014085,2]
[399672512,1766603431760,-682.34653899,0.00014085,2]
[399672513,1766603431771,-669.01695779,0.00014085,2]
[399672514,1766603431782,-2690.95070822,0.00014085,2]
[399672515,1766603431793,-4699.10683265,0.00014085,2]
[399672517,1766603432888,500.0,0.00014084,2]
[399672518,1766603432976,514.07120897,0.00014084,2]
[399672519,1766603433025,281.86479666,0.00014084,2]
[399672520,1766603433942,262.84292219,0.00014084,2]
[399672523,1766603437554,-797960.15309113,0.00014085,2]
[399672524,1766603437564,-266.0,0.00014085,2]
[399672525,1766603437576,-384.02457248,0.00014134,2]
[399672526,1766603437585,-500.0,0.00014184,2]
[399672527,1766603437595,-500.0,0.00014184,2]
[399672528,1766603437605,-200.0,0.00014186,2]
[399672529,1766603437614,-195.0,0.00014213,2]
[399672530,1766603437624,-300.0,0.00014226,2]
[399672531,1766603437633,-177.45212698,0.0001424,2]
[399672532,1766603437643,-2880.57,0.0001424,2]
[399672533,1766603437653,-9999.99,0.0001424,2]
[399672534,1766603437663,-13357.38,0.0001424,2]
[399672535,1766603437672,-299.99,0.0001424,2]
[399672536,1766603437682,-300.0,0.00014245,2]
[399672537,1766603437692,-195.0,0.0001425,2]
[399672538,1766603437703,-500.0,0.00014285,2]
[399672539,1766603437713,-500.0,0.00014285,2]
[399672540,1766603437723,-500.0,0.00014285,2]
[399672541,1766603437733,-952.78,0.00014338,2]
[399672542,1766603437742,-500.0,0.00014388,2]
[399672543,1766603437751,-500.0,0.00014388,2]
[399672544,1766603437761,-500.0,0.00014388,2]
[399672545,1766603437771,-500.0,0.00014388,2]
[399672546,1766603437781,-500.0,0.00014388,2]
[399672547,1766603437791,-500.0,0.00014388,2]
[399672548,1766603437800,-500.0,0.00014388,2]
[399672549,1766603437810,-500.0,0.00014388,2]
[399672550,1766603437820,-500.0,0.00014388,2]
[399672552,1766603437829,-500.0,0.00014388,2]
[399672554,1766603437839,-500.0,0.00014388,2]
[399672556,1766603437848,-871.58,0.00014388,2]
[399672558,1766603437858,-500.0,0.00014388,2]
[399672560,1766603437867,-500.0,0.00014388,2]
[399672562,1766603437877,-500.0,0.00014388,2]
[399672563,1766603437887,-500.0,0.00014388,2]
[399672565,1766603437897,-500.0,0.00014388,2]
[399672567,1766603437907,-500.0,0.00014388,2]
[399672569,1766603437916,-500.0,0.00014388,2]
[399672571,1766603437926,-500.0,0.00014388,2]
[399672573,1766603437935,-999.0,0.00014473,3]
[399672575,1766603437945,-1852.42,0.00014488,2]
[399672577,1766603437955,-495.0,0.00014501,2]
[399672579,1766603437965,-1860.0,0.00014517,2]
[399672581,1766603437974,-363.0,0.0001453,2]
[399672583,1766603437985,-959.0,0.00014546,2]
[399672585,1766603437995,-151.0,0.00014559,2]
[399672587,1766603438005,-150.0,0.00014574,2]
[399672589,1766603438015,-851.0,0.00014575,2]
[399672591,1766603438024,-1483.0,0.00014604,2]
[399672593,1766603438035,-871.58,0.00014662,2]
[399672595,1766603438045,-500.0,0.00014671,2]
[399672597,1766603438055,-1661.0,0.00014671,2]
[399672599,1766603438065,-2695.37,0.00014685,2]
[399672601,1766603438075,-8881.51,0.00014715,2]
[399672603,1766603438086,-952.78,0.00014725,2]
[399672605,1766603438096,-157.62,0.0001473,2]
[399672607,1766603438107,-201.0916735,0.00014733,2]
[399672609,1766603438117,-413.0,0.00014803,2]
[399672611,1766603438128,-1389.0,0.00014852,2]
[399672613,1766603438138,-166.66,0.00014873,2]
[399672615,1766603438148,-964.0,0.00014881,2]
[399672617,1766603438158,-528.0,0.00014911,2]
[399672619,1766603438168,-314.0,0.00014922,2]
[399672621,1766603438178,-500.0,0.00014932,2]
[399672623,1766603438188,-871.58,0.00014936,2]
[399672625,1766603438198,-500.0,0.00014945,2]
[399672627,1766603438209,-1270.0,0.00014974,2]
[399672629,1766603438219,-502.53521633,0.00015034,2]
[399672631,1766603438228,-500.0,0.00015034,2]
[399672633,1766603438239,-500.0,0.00015034,2]
[399672635,1766603438249,-500.0,0.00015034,2]
[399672636,1766603438260,-500.0,0.00015173,2]
[399672637,1766603438270,-500.0,0.00015173,2]